bitfinex-derivatives/quotes_ETHF0:USTF0_20250316
["timestamp","ask_amount","ask_price","bid_price","bid_amount"]
[1742123821130,3.2078,1892.3,1892.0,3.912]
[1742123821332,1.3563,1892.2,1892.0,5.2852]
[1742123822032,3.21572414,1892.5,1892.0,5.2852]
[1742123822228,1.3853,1892.4,1892.0,5.2852]
[1742123823032,3.2078,1892.3,1892.0,5.2852]
[1742123823228,1.3853,1892.2,1892.0,5.2852]
[1742123823823,7.2113,1892.2,1891.7,3.2078]
[1742123824024,7.2113,1892.2,1891.2,2.09846646]
[1742123824025,4.1085,1892.1,1891.4,29.32292414]
[1742123824323,3.2078,1891.9,1891.5,3.902]
[1742123824522,1.3853,1891.8,1891.5,5.3233]
[1742123824731,3.2078,1891.7,1891.6,3.901]
[1742123824922,9.9414,1891.7,1891.4,0.00792414]
[1742123825124,3.2078,1891.5,1890.8,29.315]
[1742123825327,3.2078,1890.9,1889.9,15.60052879]
[1742123825526,3.2078,1890.4,1890.1,1.4405]
[1742123825726,1.4471,1890.3,1889.9,16.50442879]
[1742123825929,1.4471,1890.3,1890.0,40.8]
[1742123826123,3.2078,1890.1,1889.9,12.39272879]
[1742123826424,1.4471,1890.0,1889.9,12.39272879]
[1742123826825,3.9471,1890.0,1889.9,12.39272879]
[1742123827229,3.9471,1890.0,1889.8,0.00792414]
[1742123827230,1.4471,1890.0,1889.8,0.00792414]
[1742123828126,3.2078,1889.9,1889.8,0.00792414]
[1742123828329,3.2078,1889.9,1889.2,3.92]
[1742123828529,3.2078,1889.6,1889.1,8.6042]
[1742123829123,3.2078,1889.4,1888.9,3.2078]
[1742123829325,3.2078,1889.0,1888.1,7.09832879]
[1742123829528,3.2078,1888.2,1888.0,12.98513959]
[1742123829724,7.2358,1888.2,1888.0,12.98513959]
[1742123830031,0.099,1888.1,1887.3,3.2078]
[1742123830231,3.2078,1887.5,1887.1,12.34699975]
[1742123830533,3.2078,1887.5,1887.1,22.93739975]
[1742123830724,3.2078,1887.6,1887.1,12.34699975]
[1742123830925,3.2078,1887.4,1887.1,12.35494509]
[1742123831131,0.00794534,1887.5,1887.2,10.5904]
[1742123831333,3.2078,1888.1,1887.3,3.2078]
[1742123831731,3.2078,1887.8,1887.4,10.5904]
[1742123832031,3.2078,1888.3,1887.5,4.171]
[1742123832231,3.2078,1888.1,1887.6,13.7982]
[1742123832434,3.2078,1888.1,1887.7,1.4221]
[1742123832637,3.21574534,1888.1,1887.7,1.4221]
[1742123832934,3.21574534,1888.1,1887.4,4.2]
[1742123832935,4.22394534,1888.1,1887.4,3.2078]
[1742123833132,0.00794534,1888.1,1887.8,3.2078]
[1742123833437,3.2078,1888.0,1887.9,1.4221]
[1742123833625,3.2078,1888.0,1887.5,18.0652]
[1742123833824,3.2078,1888.0,1887.6,1.4221]
[1742123834025,3.2078,1887.8,1887.1,12.35494509]
[1742123834228,4.299,1887.9,1887.0,0.02519603]
[1742123834229,3.2078,1887.4,1887.0,0.02519603]
[1742123834430,3.2078,1887.2,1887.0,0.02519603]
[1742123834740,7.5178,1887.4,1887.0,0.02519603]
[1742123834935,7.5178,1887.4,1887.0,1.39409603]
[1742123835138,3.2078,1887.8,1887.3,3.2078]
[1742123835440,3.2078,1887.8,1887.4,1.3689]
[1742123835745,3.2078,1887.8,1887.5,40.8]
[1742123836042,3.2078,1887.8,1887.6,1.3689]
[1742123836228,0.00794534,1888.1,1887.6,11.9593]
[1742123836429,0.00794534,1888.1,1887.7,11.9593]
[1742123836634,0.00794534,1888.1,1887.9,3.2078]
[1742123836832,0.00794534,1888.1,1888.0,1.3689]
[1742123837228,0.00794534,1888.1,1888.0,11.9593]
[1742123837430,0.00794534,1888.1,1888.0,42.1689]
[1742123838139,0.00794534,1888.1,1888.0,52.7593]
[1742123838641,0.00794534,1888.1,1888.0,42.1689]
[1742123839133,2.50794534,1888.1,1888.0,42.1689]
[1742123839340,2.50794534,1888.1,1888.0,1.3689]
[1742123839546,0.00794534,1888.1,1888.0,1.3689]
[1742123840537,0.00794534,1888.1,1888.0,11.9593]
[1742123840931,0.00794534,1888.1,1888.0,1.3689]
[1742123841132,0.00794534,1888.1,1888.0,11.9593]
[1742123841331,0.00794534,1888.1,1888.0,1.3689]
[1742123841532,8.33394534,1888.1,1887.7,3.2078]
[1742123841735,8.33394534,1888.1,1887.4,0.00794534]
[1742123841736,3.2078,1887.9,1887.5,1.4451]
[1742123841942,3.2078,1887.7,1887.5,1.4451]
[1742123842840,5.826,1887.8,1887.6,10.5904]
[1742123843139,5.826,1887.8,1887.7,1.4451]
[1742123843534,10.0478,1887.8,1887.4,0.00794534]
[1742123843736,3.2078,1887.5,1887.4,0.00794534]
[1742123843934,9.0338,1887.5,1887.4,0.00794534]
[1742123844134,11.5338,1887.5,1887.4,0.00794534]
[1742123844741,11.5338,1887.5,1885.4,3.2078]
[1742123844742,3.2078,1887.0,1885.4,3.2078]
[1742123844940,8.771,1887.2,1885.0,50.8]
[1742123844941,3.2078,1886.1,1885.6,3.2078]
[1742123845239,3.2078,1885.8,1883.8,3.7382]
[1742123845432,3.2078,1885.2,1884.1,3.2078]
[1742123845632,3.2078,1885.2,1884.7,3.2078]
[1742123845633,5.81805466,1885.2,1884.7,3.2078]
[1742123845842,0.00794534,1885.0,1884.9,3.2078]
[1742123846142,3.2078,1885.5,1884.9,1.4524]
[1742123846340,5.81805466,1885.4,1884.9,1.4524]
[1742123846540,3.2078,1885.3,1884.9,1.4524]
[1742123846946,3.2078,1885.5,1884.9,1.4524]
[1742123847238,3.2078,1886.6,1885.4,3.2078]
[1742123847439,3.2078,1886.2,1885.7,3.2078]
[1742123847646,3.2078,1886.5,1886.1,3.2078]
[1742123847844,3.2078,1886.5,1886.2,4.813]
[1742123848243,3.2078,1886.3,1885.8,35.1458]
[1742123848446,3.2078,1886.1,1885.8,0.9428]
[1742123848744,3.2078,1886.1,1885.9,0.00794534]
[1742123849635,3.2078,1886.1,1885.4,4.839]
[1742123849847,3.2078,1885.7,1885.4,11.68639603]
[1742123850048,3.2078,1885.7,1885.4,4.839]
[1742123850241,3.2078,1885.9,1885.4,4.839]
[1742123850444,3.2078,1885.7,1885.5,1.4549]
[1742123851048,3.2078,1885.9,1885.5,1.4549]
[1742123851651,3.2078,1885.7,1885.5,1.4549]
[1742123852048,3.2078,1886.1,1885.5,1.4549]
[1742123852248,3.2078,1886.1,1885.6,3.2078]
[1742123852444,3.2078,1887.1,1885.9,3.2078]
[1742123852748,3.2078,1886.6,1886.0,4.0851]
[1742123852938,3.2078,1886.6,1886.0,0.8773]
[1742123853448,3.2078,1886.3,1885.8,8.1038]
[1742123853653,3.2078,1886.3,1886.1,0.00794534]
[1742123854651,1.4424,1886.2,1886.1,0.00794534]
[1742123856050,3.2078,1886.3,1886.1,0.00794534]
[1742123857346,3.21574534,1886.5,1886.1,0.00794534]
[1742123857843,0.00794534,1886.5,1886.4,3.2078]
[1742123858044,3.2078,1886.9,1886.4,4.88]
[1742123858243,4.88,1887.0,1886.1,35.20784534]
[1742123858452,3.2078,1886.5,1886.2,1.3505]
[1742123858848,3.2078,1886.5,1886.2,8.19789603]
[1742123859154,3.2078,1886.5,1886.2,1.3505]
[1742123859354,3.21574534,1886.5,1886.2,1.3505]
[1742123859946,0.00794534,1886.5,1886.2,1.3505]
[1742123860348,0.00794534,1886.5,1886.3,3.2078]
[1742123860548,0.00794534,1886.5,1886.4,1.3706]
[1742123860951,0.00794534,1886.5,1886.4,8.21799603]
[1742123861146,0.00794534,1886.5,1886.4,1.3706]
[1742123861650,3.2078,1886.7,1886.4,1.3706]
[1742123862049,3.2078,1886.7,1886.4,8.21799603]
[1742123862351,3.2078,1886.7,1886.4,1.3706]
[1742123862554,3.2078,1886.5,1886.4,1.3706]
[1742123862757,3.2078,1886.5,1886.4,8.21799603]
[1742123862957,3.21573118,1886.7,1886.4,8.21799603]
[1742123863756,3.2078,1886.5,1886.4,8.21799603]
[1742123863963,0.00793118,1886.7,1886.4,8.21799603]
[1742123864459,3.2078,1886.6,1886.4,1.3706]
[1742123864658,1.406,1886.5,1886.4,1.3706]
[1742123865060,4.6138,1886.5,1886.4,1.3706]
[1742123865653,5.82598584,1886.7,1886.4,1.3706]
[1742123865852,9.03378584,1886.7,1886.4,1.3706]
[1742123866060,3.2078,1886.5,1886.1,0.92284534]
[1742123866255,5.82598584,1886.7,1886.0,0.8983]
[1742123866256,3.2078,1886.3,1886.0,1.44525466]
[1742123866561,3.2078,1886.1,1886.0,1.44525466]
[1742123866950,12.14275466,1886.4,1886.0,1.44525466]
[1742123866951,3.2078,1886.3,1886.0,1.44525466]
[1742123867154,4.6585,1886.3,1886.0,1.44525466]
[1742123867357,3.2078,1886.1,1886.0,1.44525466]
[1742123867550,3.2078,1886.1,1886.0,1.4532]
[1742123868662,3.2078,1886.1,1886.0,0.00794534]
[1742123868862,5.7078,1886.1,1886.0,0.00794534]
[1742123869050,12.85565466,1886.1,1886.0,0.00794534]
[1742123869456,14.03587222,1886.1,1886.0,0.00794534]
[1742123871863,15.88301593,1886.1,1885.2,1.3199]
[1742123872060,3.2078,1885.5,1885.2,8.16729603]
[1742123872257,3.2078,1885.5,1885.2,1.3199]
[1742123872566,3.2078,1885.8,1885.2,1.3199]
[1742123873066,0.00794534,1885.7,1885.3,0.00794534]
[1742123873961,0.00794534,1885.7,1885.4,40.8]
[1742123874167,0.00794534,1885.7,1885.5,1.3214]
[1742123874368,0.00794534,1885.7,1885.6,0.9186]
[1742123874556,4.84994534,1885.7,1885.3,0.00794534]
[1742123874863,3.2078,1885.4,1884.7,3.2078]
[1742123875067,3.2078,1885.2,1884.7,3.2078]
[1742123875370,3.2078,1885.0,1884.8,1.3214]
[1742123875563,3.2078,1885.2,1884.8,1.3214]
[1742123875965,3.2078,1885.3,1884.8,1.3214]
[1742123876164,1.18520405,1885.6,1885.1,3.2078]
[1742123876363,0.00794534,1885.7,1884.9,4.851]
[1742123876364,0.00794534,1885.7,1885.3,3.2078]
[1742123876563,0.00794534,1885.7,1885.4,1.3214]
[1742123876863,0.00794534,1885.7,1884.7,2.09846646]
[1742123876864,3.2078,1884.7,1883.2,3.2078]
[1742123877062,3.2078,1880.9,1879.2,43.98515303]
[1742123877264,37.61795466,1880.8,1877.7,644.18650506]
[1742123877462,37.61795466,1880.8,1877.9,10.616]
[1742123877463,43.56205466,1880.7,1877.9,10.616]
[1742123877666,43.56205466,1880.7,1877.7,664.42990506]
[1742123877667,3.2078,1877.9,1877.7,347.84288849]
[1742123877863,15.0312621,1880.6,1877.6,611.54917514]
[1742123877864,3.2078,1877.7,1877.6,611.54917514]
[1742123878064,3.2078,1877.2,1875.7,3.2078]
[1742123878263,39.09122938,1877.1,1873.8,15.8532]
[1742123878564,3.2078,1874.0,1873.3,3.2078]
[1742123878756,3.2078,1875.5,1874.2,0.09256661]
[1742123878957,6.20193917,1875.4,1875.3,0.00798999]
[1742123879159,6.85944895,1875.4,1873.4,5.91013311]
[1742123879360,3.2078,1875.1,1873.4,5.90883311]
[1742123879560,5.826,1875.0,1872.8,219.9215009]
[1742123879767,3.2078,1873.8,1872.9,166.28426003]
[1742123879957,7.06231436,1875.0,1873.7,3.2078]
[1742123880163,6.234,1876.6,1874.9,3.2078]
[1742123880364,0.00798999,1874.5,1874.2,0.0054152]
[1742123880560,0.77799843,1875.6,1874.5,3.19981001]
[1742123880764,0.77799843,1875.7,1874.9,3.2078]
[1742123881067,3.2078,1877.3,1875.9,3.2078]
[1742123881261,2.58101539,1878.3,1876.6,3.2078]
[1742123881571,3.2078,1878.6,1877.7,3.2078]
[1742123881770,3.2078,1879.3,1878.1,3.2078]
[1742123881968,3.2078,1880.0,1878.9,3.2078]
[1742123882161,3.2078,1880.5,1879.4,3.2078]
[1742123882364,3.2078,1882.4,1880.7,3.2078]
[1742123882560,5.826,1882.3,1880.2,29.475]
[1742123882869,5.826,1882.2,1882.1,3.2078]
[1742123883068,5.826,1883.6,1882.1,3.2078]
[1742123883268,3.27499461,1883.7,1883.3,3.2078]
[1742123883269,0.06719461,1883.7,1883.3,3.2078]
[1742123883471,3.2078,1884.4,1883.4,2.146]
[1742123883669,3.2078,1883.2,1881.7,3.2078]
[1742123883865,3.2078,1882.2,1881.2,3.2078]
[1742123884066,3.2078,1882.2,1881.0,3.2078]
[1742123884262,3.2078,1882.3,1881.4,3.2078]
[1742123884464,3.2078,1881.6,1881.4,0.00796685]
[1742123884665,3.2078,1881.6,1880.7,3.2078]
[1742123884978,0.5048,1881.5,1880.9,3.2078]
[1742123885166,3.2078,1881.9,1881.2,3.2078]
[1742123885367,4.045,1881.8,1881.4,3.2078]
[1742123885565,4.045,1881.8,1880.9,32.7068]
[1742123885769,4.045,1881.7,1881.5,3.2078]
[1742123885970,0.00796685,1881.8,1881.5,8.5181]
[1742123886172,0.00796685,1881.8,1881.7,3.2078]
[1742123886378,0.00796685,1881.8,1881.7,8.5189]
[1742123886567,0.00796685,1881.8,1881.1,3.2078]
[1742123886774,3.2078,1881.2,1880.8,29.504]
[1742123887077,3.2078,1880.6,1880.0,29.504]
[1742123887275,3.2078,1879.6,1878.8,29.504]
[1742123887479,3.2078,1879.0,1878.9,29.504]
[1742123887681,3.2078,1879.3,1878.9,29.504]
[1742123887975,3.2078,1879.8,1879.0,57.98096003]
[1742123888279,244.3281353,1881.6,1879.4,0.02040396]
[1742123888280,3.2078,1879.7,1879.4,0.02040396]
[1742123888481,3.2078,1880.4,1879.4,0.02040396]
[1742123888778,3.2078,1879.9,1879.4,102.01736002]
[1742123888975,3.2078,1879.9,1879.6,0.04080792]
[1742123889278,119.78266193,1879.7,1878.9,26.29443315]
[1742123889480,3.18739604,1879.0,1878.8,27.98793949]
[1742123889874,3.18739604,1879.0,1878.5,13.57859318]
[1742123890082,3.2078,1879.0,1878.6,30.9673]
[1742123890271,3.2078,1878.8,1878.7,29.511]
[1742123890582,0.00796685,1879.0,1878.7,35.83489318]
[1742123890881,3.2078,1878.9,1878.7,27.52726535]
[1742123891088,116.57486193,1879.8,1878.8,3.2078]
[1742123891285,116.57486193,1879.8,1879.1,3.2078]
[1742123891482,116.57486193,1879.8,1879.3,3.2078]
[1742123891681,116.57486193,1879.8,1879.4,3.4773]
[1742123891875,3.2078,1880.8,1879.7,3.2078]
[1742123892081,3.2078,1880.3,1879.8,30.9126]
[1742123892276,0.00796685,1880.4,1880.1,0.00796685]
[1742123893086,75.84609318,1880.2,1880.1,0.00796685]
[1742123893382,0.00796685,1880.4,1880.1,5.71496685]
[1742123893579,1.891,1882.2,1880.1,5.71496685]
[1742123893580,3.2078,1881.1,1880.3,3.2078]
[1742123893777,3.2078,1880.7,1880.1,3.21496685]
[1742123893993,1.0637,1879.7,1878.6,3.2078]
[1742123894181,3.2078,1879.8,1878.8,3.2078]
[1742123894485,3.2078,1879.9,1879.0,3.2078]
[1742123894694,3.2078,1879.9,1879.0,3.207]
[1742123894892,0.01596651,1880.1,1879.6,3.2078]
[1742123895085,0.01596651,1880.1,1879.7,31.381]
[1742123895286,0.01596651,1880.1,1879.7,32.765]
[1742123895481,0.00796685,1880.1,1880.0,3.2078]
[1742123895687,3.2078,1881.0,1879.7,35.265]
[1742123895887,3.2078,1880.9,1880.0,3.2078]
[1742123896190,3.2078,1880.9,1880.1,1.812]
[1742123896388,3.2078,1881.1,1880.1,1.812]
[1742123896594,3.2078,1881.0,1880.5,3.2078]
[1742123896795,145.47862109,1880.9,1880.6,29.513]
[1742123897088,3.2078,1881.7,1880.7,3.2078]
[1742123897289,3.2078,1881.4,1880.9,3.2078]
[1742123897885,1.0637,1881.4,1880.7,1.8099]
[1742123898096,3.2078,1880.8,1879.5,29.507]
[1742123898395,7.717,1882.0,1879.7,1.7472]
[1742123898396,3.2078,1880.1,1879.7,1.7472]
[1742123898690,1.0637,1880.9,1879.7,1.7472]
[1742123898691,3.2078,1879.9,1879.7,31.092]
[1742123898995,3.2078,1879.9,1878.7,1.569]
[1742123899191,3.18667955,1879.2,1878.7,2.5]
[1742123899390,3.2078,1878.9,1878.6,19.75814739]
[1742123899586,3.2078,1879.0,1878.6,19.75814739]
[1742123899788,3.2078,1879.0,1878.8,0.00796685]
[1742123900090,3.2078,1879.2,1878.9,40.8]
[1742123900290,3.2078,1879.4,1879.0,1.3606]
[1742123900485,3.2078,1880.1,1879.0,7.0684]
[1742123900791,3.2078,1879.3,1879.0,1.3606]
[1742123901096,3.2078,1879.7,1879.1,3.2078]
[1742123901396,0.00796685,1879.3,1879.1,3.2078]
[1742123901695,3.2078,1880.0,1879.1,5.7078]
[1742123901895,3.2078,1879.7,1879.2,1.457]
[1742123902192,3.2078,1879.8,1879.2,1.457]
[1742123902391,3.2078,1879.8,1879.2,4.6648]
[1742123902584,3.2078,1879.9,1879.2,4.6648]
[1742123902783,0.00796685,1879.7,1879.3,0.00796685]
[1742123902992,0.00796685,1879.7,1879.4,3.2078]
[1742123903190,3.2078,1879.5,1879.3,0.00796685]
[1742123903696,3.2078,1879.5,1878.9,31.21201539]
[1742123903886,3.2078,1879.2,1878.7,0.9453]
[1742123904087,1.0637,1878.0,1876.9,3.2078]
[1742123904291,1.891,1879.1,1876.2,29.509]
[1742123904292,3.2078,1877.2,1876.3,3.2078]
[1742123904487,3.2078,1877.5,1876.5,3.2078]
[1742123904793,0.00798956,1877.2,1876.8,0.00798956]
[1742123905091,0.00798956,1877.2,1877.0,40.8]
[1742123905292,3.2078,1878.1,1877.1,34.0595]
[1742123905487,3.2078,1878.6,1877.9,3.2078]
[1742123905692,3.2078,1878.9,1878.1,3.2078]
[1742123905886,118.97290412,1879.4,1878.5,3.2078]
[1742123906087,3.87080427,1879.3,1878.5,1.276]
[1742123906288,3.2078,1879.1,1878.6,3.2078]
[1742123906492,3.21578956,1879.1,1878.7,0.00798956]
[1742123906691,0.00798956,1879.1,1878.7,5.71578956]
[1742123907095,3.21578956,1879.1,1878.7,0.00798956]
[1742123907296,0.00798956,1879.1,1878.7,3.78298956]
[1742123907795,0.00798956,1879.1,1878.7,3.78218956]
[1742123907987,0.00798956,1879.1,1878.8,1.275]
[1742123908192,0.00798956,1879.1,1879.0,3.2078]
[1742123908601,3.2078,1879.9,1879.0,5.7078]
[1742123908793,3.2078,1879.7,1879.3,40.8]
[1742123909296,21.07785492,1879.5,1879.3,43.3]
[1742123909896,21.07785492,1879.5,1879.4,3.2078]
[1742123910393,5.11565492,1879.5,1879.4,6.37693091]
[1742123910592,0.00798956,1879.6,1879.4,6.37693091]
[1742123910792,3.2078,1880.6,1879.5,1.275]
[1742123910998,4.39339708,1880.5,1879.7,3.2078]
[1742123911197,55.87045527,1879.8,1879.7,3.2078]
[1742123911394,55.87045527,1879.8,1879.7,2.5]
[1742123911594,59.07825527,1879.8,1879.6,1.211]
[1742123911899,50.55045527,1879.8,1879.6,4.4188]
[1742123912099,50.55045527,1879.8,1879.7,40.8]
[1742123912302,34.91045527,1879.8,1879.7,46.78]
[1742123912596,34.91045527,1879.8,1879.7,49.28]
[1742123913106,3.2078,1881.0,1879.7,49.28]
[1742123913301,1.19459702,1880.7,1880.2,3.2078]
[1742123913603,0.67102546,1880.6,1880.3,11.5680601]
[1742123913801,75.00388391,1880.8,1880.3,11.5680601]
[1742123913999,1.19379874,1880.7,1880.3,14.7758601]
[1742123914200,0.67100269,1880.6,1880.3,14.7758601]
[1742123914396,0.67100269,1880.6,1880.3,17.2758601]
[1742123914600,0.00611882,1880.7,1880.3,17.2758601]
[1742123914906,0.00611882,1880.7,1880.3,14.7758601]
[1742123915214,0.00611882,1880.7,1880.3,17.2758601]
[1742123915408,15.50842602,1880.4,1880.3,17.2758601]
[1742123915705,15.50842602,1880.4,1880.3,14.7758601]
[1742123916005,15.50842602,1880.4,1880.3,33.034]
[1742123917015,15.50842602,1880.4,1880.3,73.834]
[1742123917417,40.68429009,1880.4,1880.3,73.834]
[1742123917713,40.68429009,1880.4,1880.3,70.303]
[1742123917905,43.89209009,1880.4,1879.9,0.977]
[1742123918104,40.68429009,1880.4,1879.9,0.977]
[1742123918309,3.2078,1880.3,1879.9,0.977]
[1742123918512,40.68429009,1880.4,1879.7,38.6908]
[1742123918715,3.87830752,1880.3,1879.8,0.978]
[1742123918912,3.2078,1880.3,1880.0,40.8]
[1742123919116,3.2078,1880.1,1880.0,40.8]
[1742123919309,4.40052633,1880.1,1880.0,40.8]
[1742123919510,1.19272633,1880.1,1880.0,40.8]
[1742123919710,0.67039873,1880.1,1880.0,40.8]
[1742123920005,0.67039873,1880.1,1879.7,30.385]
[1742123920212,3.2078,1880.2,1879.7,33.5928]
[1742123920411,0.6723804,1880.1,1879.7,33.5928]
[1742123920614,116.46875204,1880.3,1879.7,33.5928]
[1742123921118,116.46875204,1880.1,1879.9,3.2078]
[1742123921717,116.46875204,1880.1,1880.0,0.794]
[1742123922007,116.46875204,1880.1,1880.0,41.594]
[1742123922316,111.14955204,1880.1,1880.0,44.094]
[1742123922517,8.47842602,1880.5,1880.0,41.594]
[1742123922715,8.47842602,1880.5,1880.1,3.2078]
[1742123923217,52.35531966,1880.5,1880.1,5.7078]
[1742123923618,52.35531966,1880.5,1880.2,0.755]
[1742123923917,52.35531966,1880.5,1880.2,12.02]
[1742123924120,52.35531966,1880.5,1880.3,8.4928]
[1742123924615,52.35531966,1880.5,1880.2,5.98]
[1742123924917,52.35531966,1880.5,1880.4,15.26003005]
[1742123925116,52.35531966,1880.5,1880.4,21.24003005]
[1742123925419,21.53614857,1880.9,1880.4,16.9728]
[1742123925617,21.53614857,1880.9,1880.6,3.2078]
[1742123925812,21.53614857,1880.9,1880.7,29.491]
[1742123926012,21.53614857,1880.9,1880.8,3.2078]
[1742123926415,21.53614857,1880.9,1880.8,5.7078]
[1742123926621,21.53614857,1880.9,1880.8,46.5078]
[1742123926814,3.2078,1881.9,1880.8,52.4878]
[1742123927016,3.2078,1881.4,1880.9,4.3758]
[1742123927317,7.92088667,1881.0,1880.9,0.636]
[1742123927515,7.92088667,1881.0,1880.9,0.603]
[1742123928119,7.92088667,1881.0,1880.9,41.403]
[1742123928415,11.12868667,1881.0,1880.9,40.8]
[1742123928612,11.12868667,1881.0,1880.7,0.00798956]
[1742123928613,12.8627625,1881.0,1880.7,0.00798956]
[1742123928818,3.2078,1880.8,1880.7,0.00798956]
[1742123929121,3.2078,1880.8,1880.7,0.57998956]
[1742123930918,4.2715,1880.8,1880.7,0.00798956]
[1742123931217,4.94294967,1880.8,1880.0,0.532]
[1742123931420,3.2078,1880.3,1880.1,0.573]
[1742123931919,4.2715,1880.3,1880.2,40.8]
[1742123932109,3.2078,1880.3,1880.2,40.8]
[1742123932315,3.2078,1880.5,1880.2,40.8]
[1742123932516,1.07168956,1880.4,1880.2,40.8]
[1742123932822,3.2078,1880.3,1880.2,40.8]
[1742123933416,0.00798956,1880.4,1880.2,40.8]
[1742123934520,3.2078,1880.3,1880.2,40.8]
[1742123934725,4.2715,1880.3,1880.2,50.946]
[1742123935620,4.2715,1880.3,1880.2,40.8]
[1742123936015,24.26984448,1880.2,1879.0,29.485]
[1742123936217,3.2078,1879.5,1879.3,10.093]
[1742123936923,3.2078,1880.0,1879.3,10.093]
[1742123937119,3.2078,1879.7,1879.4,40.8]
[1742123937314,3.2078,1879.7,1879.5,0.00798956]
[1742123938624,3.2078,1879.7,1879.4,40.8]
[1742123938815,3.2078,1879.5,1879.4,40.8]
[1742123939426,3.2078,1879.9,1879.4,40.8]
[1742123939916,3.2078,1879.9,1879.5,0.00798956]
[1742123940224,3.2078,1879.9,1879.5,10.09681505]
[1742123940417,3.2078,1880.2,1879.5,10.09681505]
[1742123940616,3.21578956,1880.4,1879.7,8.4928]
[1742123940822,3.2078,1880.2,1879.8,9.905]
[1742123941018,3.2078,1880.0,1879.9,39.386]
[1742123941222,3.21578956,1880.4,1879.9,39.386]
[1742123941426,3.2078,1880.0,1879.9,29.491]
[1742123941618,3.2078,1880.0,1879.9,80.156]
[1742123942219,3.2078,1880.3,1879.9,80.156]
[1742123942426,0.00798956,1880.4,1879.9,80.156]
[1742123942724,0.00798956,1880.4,1880.0,0.0071]
[1742123943622,0.00798956,1880.4,1879.9,40.8]
[1742123943623,3.2078,1880.1,1879.9,40.8]
[1742123943817,22.39155641,1880.1,1879.9,40.8]
[1742123944012,3.2078,1880.1,1879.9,40.8]
[1742123944425,3.2078,1880.1,1880.0,9.767]
[1742123944624,3.2078,1880.3,1880.0,9.767]
[1742123944825,3.2078,1880.1,1880.0,9.767]
[1742123945024,3.2078,1880.1,1880.0,50.567]
[1742123945324,0.00798956,1880.4,1880.0,50.567]
[1742123945325,3.2078,1880.3,1880.0,50.567]
[1742123945521,0.00798956,1880.4,1880.0,50.567]
[1742123946018,0.00798956,1880.4,1880.0,59.7548]
[1742123946219,0.00798956,1880.4,1880.1,6.76746329]
[1742123946418,0.00798956,1880.4,1880.2,9.676]
[1742123946826,3.98964251,1880.4,1880.2,9.676]
[1742123947025,3.98964251,1880.4,1880.2,9.6819]
[1742123948429,3.98964251,1880.4,1880.0,49.9878]
[1742123948627,3.98964251,1880.4,1880.1,9.585]
[1742123948927,3.2078,1880.2,1880.1,9.585]
[1742123949528,3.45873236,1880.4,1880.1,50.385]
[1742123949927,2.40121179,1880.5,1880.2,1.3634]
[1742123950727,3.2078,1880.6,1880.2,1.3634]
[1742123951025,0.00798956,1880.5,1880.2,1.3634]
[1742123951630,3.2078,1880.4,1880.1,40.8]
[1742123951827,3.2078,1880.4,1880.2,9.472]
[1742123952624,3.2078,1880.4,1880.1,40.8]
[1742123952625,4.6658,1880.4,1880.1,40.8]
[1742123953027,4.6658,1880.4,1880.2,9.429]
[1742123954425,0.00798956,1880.5,1880.2,9.429]
[1742123954630,0.00798956,1880.5,1880.2,10.8651]
[1742123955127,0.00798956,1880.5,1880.4,40.8]
[1742123955323,0.00798956,1880.5,1880.4,70.285]
[1742123955633,0.00798956,1880.5,1880.4,75.57]
[1742123955838,7.92088667,1880.7,1880.4,84.7578]
[1742123955839,6.82340294,1880.7,1880.4,84.7578]
[1742123956137,3.2078,1881.5,1880.6,8.4928]
[1742123956327,1.3484,1881.6,1880.9,5.285]
[1742123956526,1.3484,1881.4,1881.0,9.274]
[1742123956734,1.3484,1881.4,1881.3,40.8]
[1742123956934,0.64066536,1881.7,1881.3,70.285]
[1742123957134,0.00798956,1881.5,1881.3,75.57]
[1742123957335,0.00798956,1881.5,1881.4,1.427]
[1742123957925,0.00798956,1881.5,1881.4,42.227]
[1742123958132,0.00798956,1881.5,1881.4,45.4348]
[1742123959241,0.64066536,1881.7,1881.4,45.4348]
[1742123959437,0.64066536,1881.7,1881.4,42.227]
[1742123959636,0.64066536,1881.7,1881.4,50.7198]
[1742123959839,15.08913,1881.9,1881.6,5.285]
[1742123960033,12.94757417,1881.9,1881.7,10.5732]
[1742123960235,9.73977417,1881.9,1881.7,10.5732]
[1742123960439,12.94757417,1881.9,1881.8,49.938]
[1742123961441,32.13133058,1881.9,1881.8,40.8]
[1742123961628,32.13133058,1881.9,1881.8,49.892]
[1742123961936,52.11068014,1881.9,1881.8,40.8]
[1742123962238,76.38052462,1881.9,1881.8,40.8]
[1742123962832,77.84782462,1881.9,1881.8,40.8]
[1742123963031,14.41487417,1881.9,1881.8,40.8]
[1742123963443,4.6751,1881.9,1881.8,40.8]
[1742123963739,23.85885641,1881.9,1881.8,40.8]
[1742123963933,4.6751,1881.9,1881.8,40.8]
[1742123964133,68.10805045,1881.9,1881.8,40.8]
[1742123965137,4.6751,1881.9,1881.8,40.8]
[1742123965341,23.85885641,1881.9,1881.8,40.8]
[1742123966032,4.6751,1881.9,1881.8,40.8]
[1742123966436,68.10805045,1881.9,1881.8,40.8]
[1742123966936,48.12870089,1881.9,1881.8,40.8]
[1742123967143,23.85885641,1881.9,1881.8,40.8]
[1742123967337,68.10805045,1881.9,1881.8,40.8]
[1742123967940,48.12870089,1881.9,1881.8,40.8]
[1742123968143,68.10805045,1881.9,1881.8,40.8]
[1742123968344,23.85885641,1881.9,1881.8,40.8]
[1742123969341,4.6751,1881.9,1881.8,40.8]
[1742123970041,68.10805045,1881.9,1881.8,40.8]
[1742123970234,50.62870089,1881.9,1881.2,0.00798956]